[Event "Titled Tuesday Blitz February 15 Early 2022"]
[White "Reprintsev, Alexander"]
[Black "Lakshmi C"]
[WhiteFideId "14100541"]
[BlackFideId "25035347"]
[WhiteElo "2126"]
[BlackElo "1775"]
[Result "1-0"]
[Round "08"]
[TimeControl "180+1"]
[Date "2022.02.15"]
[WhiteClock "0:01:34"]
[BlackClock "0:00:01"]

1. e4 {[%clk 0:02:45]}  e5 {[%clk 0:02:53]} 2. f4 {[%clk 0:02:45]}  Bc5 {[%clk 0:02:38]} 3. Nf3 {[%clk 0:02:43]}  d6 {[%clk 0:02:32]} 4. c3 {[%clk 0:02:43]}  Nc6 {[%clk 0:02:31]} 5. Bb5 {[%clk 0:02:34]}  Bg4 {[%clk 0:02:27]} 6. h3 {[%clk 0:02:33]}  Bd7 {[%clk 0:02:21]} 7. d4 {[%clk 0:02:31]}  Bb6 {[%clk 0:01:19]} 8. d5 {[%clk 0:02:21]}  Nb8 {[%clk 0:01:18]} 9. Bd3 {[%clk 0:02:15]}  Qe7 {[%clk 0:01:14]} 10. fxe5 {[%clk 0:02:00]}  dxe5 {[%clk 0:01:13]} 11. Na3 {[%clk 0:01:58]}  f6 {[%clk 0:00:19]} 12. Nc4 {[%clk 0:01:57]}  Na6 {[%clk 0:00:18]} 13. b4 {[%clk 0:01:50]}  Nb8 {[%clk 0:00:14]} 14. a4 {[%clk 0:01:49]}  a6 {[%clk 0:00:13]} 15. Nxb6 {[%clk 0:01:48]}  cxb6 {[%clk 0:00:13]} 16. Be3 {[%clk 0:01:49]}  Qd6 {[%clk 0:00:13]} 17. Nd2 {[%clk 0:01:47]}  b5 {[%clk 0:00:12]} 18. axb5 {[%clk 0:01:46]}  Nh6 {[%clk 0:00:07]} 19. Bc5 {[%clk 0:01:42]}  Qc7 {[%clk 0:00:07]} 20. O-O {[%clk 0:01:41]}  b6 {[%clk 0:00:03]} 21. Be3 {[%clk 0:01:39]}  O-O {[%clk 0:00:01]} 22. Bxh6 {[%clk 0:01:34]} 1-0


[Site "https://www.chess.com"]

[Event "Titled Tuesday Blitz February 15 Early 2022"]
[White "Rodchenkov, Sergey D."]
[Black "Dvirnyy, Danyyil"]
[WhiteFideId "4168712"]
[BlackFideId "817570"]
[WhiteElo "2306"]
[BlackElo "2546"]
[Result "0-1"]
[Round "08"]
[TimeControl "180+1"]
[Date "2022.02.15"]
[WhiteClock "0:00:03"]
[BlackClock "0:02:16"]

1. e4 {[%clk 0:03:00]}  c5 {[%clk 0:02:58]} 2. Nf3 {[%clk 0:03:01]}  d6 {[%clk 0:02:59]} 3. d4 {[%clk 0:03:01]}  cxd4 {[%clk 0:03:00]} 4. Nxd4 {[%clk 0:03:02]}  Nf6 {[%clk 0:03:00]} 5. Nc3 {[%clk 0:03:03]}  a6 {[%clk 0:03:01]} 6. Bg5 {[%clk 0:03:03]}  Nbd7 {[%clk 0:03:00]} 7. Qe2 {[%clk 0:03:02]}  h6 {[%clk 0:03:00]} 8. Bh4 {[%clk 0:03:01]}  g6 {[%clk 0:03:00]} 9. O-O-O {[%clk 0:03:00]}  e5 {[%clk 0:02:54]} 10. Nb3 {[%clk 0:02:56]}  Be7 {[%clk 0:02:54]} 11. f3 {[%clk 0:02:55]}  b5 {[%clk 0:02:54]} 12. a3 {[%clk 0:02:54]}  Qc7 {[%clk 0:02:47]} 13. Be1 {[%clk 0:02:50]}  Nb6 {[%clk 0:02:41]} 14. Na5 {[%clk 0:02:39]}  Be6 {[%clk 0:02:39]} 15. Kb1 {[%clk 0:02:31]}  Rb8 {[%clk 0:02:37]} 16. Qf2 {[%clk 0:02:19]}  O-O {[%clk 0:02:27]} 17. g4 {[%clk 0:01:49]}  d5 {[%clk 0:02:25]} 18. exd5 {[%clk 0:01:43]}  Nfxd5 {[%clk 0:02:23]} 19. Ne4 {[%clk 0:01:38]}  Nc4 {[%clk 0:02:22]} 20. Bxc4 {[%clk 0:01:14]}  bxc4 {[%clk 0:02:23]} 21. Ka1 {[%clk 0:00:49]}  c3 {[%clk 0:02:23]} 22. b4 {[%clk 0:00:46]}  Bxb4 {[%clk 0:02:20]} 23. Rxd5 {[%clk 0:00:14]}  Bxd5 {[%clk 0:02:17]} 24. axb4 {[%clk 0:00:13]}  Rxb4 {[%clk 0:02:18]} 25. Nb3 {[%clk 0:00:06]}  Bxb3 {[%clk 0:02:18]} 26. cxb3 {[%clk 0:00:06]}  Rxb3 {[%clk 0:02:19]} 27. Qa2 {[%clk 0:00:04]}  Rfb8 {[%clk 0:02:17]} 28. Bxc3 {[%clk 0:00:03]}  Rxc3 {[%clk 0:02:17]} 29. Nf6+ {[%clk 0:00:03]}  Kg7 {[%clk 0:02:16]} 30. Nd5 {[%clk 0:00:03]}  Rc1+ {[%clk 0:02:16]} 0-1


[Site "https://www.chess.com"]

[Event "Titled Tuesday Blitz February 15 Early 2022"]
[White "Ronka, Erik"]
[Black "Cramling Bellon, Anna"]
[WhiteFideId "505080"]
[BlackFideId "32009232"]
[WhiteElo "2264"]
[BlackElo "1905"]
[Result "1/2-1/2"]
[Round "08"]
[TimeControl "180+1"]
[Date "2022.02.15"]
[WhiteClock "0:00:06"]
[BlackClock "0:00:06"]

1. d4 {[%clk 0:03:00]}  Nf6 {[%clk 0:02:55]} 2. Nf3 {[%clk 0:03:01]}  d5 {[%clk 0:02:55]} 3. g3 {[%clk 0:03:01]}  c5 {[%clk 0:02:52]} 4. Bg2 {[%clk 0:03:02]}  Nc6 {[%clk 0:02:52]} 5. O-O {[%clk 0:03:02]}  Bf5 {[%clk 0:02:46]} 6. c4 {[%clk 0:02:44]}  e6 {[%clk 0:02:44]} 7. cxd5 {[%clk 0:02:43]}  exd5 {[%clk 0:02:42]} 8. Nc3 {[%clk 0:02:42]}  Be7 {[%clk 0:02:34]} 9. dxc5 {[%clk 0:02:42]}  O-O {[%clk 0:02:30]} 10. a3 {[%clk 0:02:40]}  Bxc5 {[%clk 0:02:29]} 11. b4 {[%clk 0:02:37]}  Be7 {[%clk 0:02:21]} 12. Bb2 {[%clk 0:02:37]}  d4 {[%clk 0:02:14]} 13. Nb5 {[%clk 0:02:31]}  d3 {[%clk 0:02:13]} 14. e3 {[%clk 0:02:19]}  a5 {[%clk 0:01:58]} 15. Nbd4 {[%clk 0:02:18]}  Be4 {[%clk 0:01:51]} 16. b5 {[%clk 0:02:15]}  Nxd4 {[%clk 0:01:47]} 17. Nxd4 {[%clk 0:02:16]}  Qd5 {[%clk 0:01:45]} 18. Bxe4 {[%clk 0:02:13]}  Qxe4 {[%clk 0:01:44]} 19. Qf3 {[%clk 0:02:12]}  Rac8 {[%clk 0:01:33]} 20. Qxe4 {[%clk 0:02:06]}  Nxe4 {[%clk 0:01:34]} 21. Rfd1 {[%clk 0:02:05]}  Nc5 {[%clk 0:01:06]} 22. Nf5 {[%clk 0:01:57]}  Rfe8 {[%clk 0:00:38]} 23. Nxg7 {[%clk 0:01:50]}  Red8 {[%clk 0:00:38]} 24. Nf5 {[%clk 0:01:50]}  Bf8 {[%clk 0:00:38]} 25. Bf6 {[%clk 0:01:25]}  Rd7 {[%clk 0:00:27]} 26. Rac1 {[%clk 0:01:24]}  Re8 {[%clk 0:00:13]} 27. Bd4 {[%clk 0:01:12]}  Nb3 {[%clk 0:00:12]} 28. Rc4 {[%clk 0:01:12]}  Nxd4 {[%clk 0:00:06]} 29. Rxd4 {[%clk 0:01:13]}  Rxd4 {[%clk 0:00:05]} 30. Nxd4 {[%clk 0:01:14]}  Bxa3 {[%clk 0:00:06]} 31. Rxd3 {[%clk 0:01:12]}  Bc5 {[%clk 0:00:06]} 32. Nb3 {[%clk 0:01:06]}  Bb4 {[%clk 0:00:05]} 33. Nc1 {[%clk 0:00:50]}  Rc8 {[%clk 0:00:05]} 34. Na2 {[%clk 0:00:51]}  Rc2 {[%clk 0:00:03]} 35. Nxb4 {[%clk 0:00:48]}  axb4 {[%clk 0:00:04]} 36. Rb3 {[%clk 0:00:49]}  Rc1+ {[%clk 0:00:04]} 37. Kg2 {[%clk 0:00:49]}  Rc4 {[%clk 0:00:05]} 38. Kf3 {[%clk 0:00:49]}  Kg7 {[%clk 0:00:05]} 39. e4 {[%clk 0:00:49]}  Kf6 {[%clk 0:00:06]} 40. Ke3 {[%clk 0:00:50]}  Ke5 {[%clk 0:00:06]} 41. f4+ {[%clk 0:00:50]}  Kd6 {[%clk 0:00:07]} 42. Kd3 {[%clk 0:00:50]}  Kc5 {[%clk 0:00:07]} 43. b6 {[%clk 0:00:50]}  Rd4+ {[%clk 0:00:06]} 44. Ke3 {[%clk 0:00:50]}  Rc4 {[%clk 0:00:06]} 45. f5 {[%clk 0:00:41]}  Kxb6 {[%clk 0:00:06]} 46. g4 {[%clk 0:00:40]}  Kc5 {[%clk 0:00:06]} 47. h4 {[%clk 0:00:38]}  h6 {[%clk 0:00:04]} 48. g5 {[%clk 0:00:37]}  hxg5 {[%clk 0:00:04]} 49. hxg5 {[%clk 0:00:38]}  Rc1 {[%clk 0:00:03]} 50. Kf2 {[%clk 0:00:19]}  b5 {[%clk 0:00:02]} 51. g6 {[%clk 0:00:15]}  fxg6 {[%clk 0:00:02]} 52. fxg6 {[%clk 0:00:16]}  Rc2+ {[%clk 0:00:02]} 53. Ke1 {[%clk 0:00:15]}  Rg2 {[%clk 0:00:02]} 54. Kd1 {[%clk 0:00:10]}  Rxg6 {[%clk 0:00:02]} 55. Kc1 {[%clk 0:00:10]}  Re6 {[%clk 0:00:02]} 56. Re3 {[%clk 0:00:08]}  Kc4 {[%clk 0:00:01]} 57. Kb2 {[%clk 0:00:07]}  Kd4 {[%clk 0:00:02]} 58. Rg3 {[%clk 0:00:06]}  Rxe4 {[%clk 0:00:02]} 59. Rg5 {[%clk 0:00:07]}  Kc4 {[%clk 0:00:02]} 60. Rg8 {[%clk 0:00:07]}  Re2+ {[%clk 0:00:03]} 61. Kb1 {[%clk 0:00:07]}  Kb3 {[%clk 0:00:03]} 62. Rg3+ {[%clk 0:00:07]}  Ka4 {[%clk 0:00:03]} 63. Rh3 {[%clk 0:00:07]}  b3 {[%clk 0:00:03]} 64. Rh8 {[%clk 0:00:07]}  Re1+ {[%clk 0:00:03]} 65. Kb2 {[%clk 0:00:07]}  Re2+ {[%clk 0:00:04]} 66. Kb1 {[%clk 0:00:07]}  Kb4 {[%clk 0:00:04]} 67. Ra8 {[%clk 0:00:05]}  Kc3 {[%clk 0:00:05]} 68. Rc8+ {[%clk 0:00:05]}  Kb4 {[%clk 0:00:05]} 69. Ra8 {[%clk 0:00:05]}  Kc3 {[%clk 0:00:05]} 70. Rc8+ {[%clk 0:00:05]}  Kb4 {[%clk 0:00:06]} 71. Ra8 {[%clk 0:00:06]} 1/2-1/2


[Site "https://www.chess.com"]

[Event "Titled Tuesday Blitz February 15 Early 2022"]
[White "Rostovtsev, Dmitry"]
[Black "Cori T., Deysi"]
[WhiteFideId "34278320"]
[BlackFideId "3801934"]
[WhiteElo "2803"]
[BlackElo "2584"]
[Result "0-1"]
[Round "08"]
[TimeControl "180+1"]
[Date "2022.02.15"]
[WhiteClock "0:00:01"]
[BlackClock "0:00:09"]

1. e4 {[%clk 0:03:00]}  e6 {[%clk 0:02:59]} 2. d4 {[%clk 0:02:59]}  d5 {[%clk 0:03:00]} 3. Nc3 {[%clk 0:02:59]}  Be7 {[%clk 0:03:00]} 4. Nf3 {[%clk 0:02:50]}  Nf6 {[%clk 0:03:00]} 5. Bd3 {[%clk 0:02:51]}  c5 {[%clk 0:02:57]} 6. exd5 {[%clk 0:02:48]}  Nxd5 {[%clk 0:02:56]} 7. dxc5 {[%clk 0:02:48]}  Bxc5 {[%clk 0:02:56]} 8. Ne4 {[%clk 0:02:46]}  Be7 {[%clk 0:02:55]} 9. O-O {[%clk 0:02:46]}  O-O {[%clk 0:02:55]} 10. Qe2 {[%clk 0:02:46]}  Nc6 {[%clk 0:02:53]} 11. Rd1 {[%clk 0:02:44]}  Qc7 {[%clk 0:02:53]} 12. c4 {[%clk 0:02:42]}  Nf4 {[%clk 0:02:53]} 13. Bxf4 {[%clk 0:02:41]}  Qxf4 {[%clk 0:02:54]} 14. Ng3 {[%clk 0:02:30]}  e5 {[%clk 0:02:52]} 15. Qe4 {[%clk 0:02:25]}  g6 {[%clk 0:02:38]} 16. Qxf4 {[%clk 0:02:16]}  exf4 {[%clk 0:02:39]} 17. Ne2 {[%clk 0:02:17]}  g5 {[%clk 0:02:30]} 18. Ned4 {[%clk 0:02:17]}  Bf6 {[%clk 0:02:26]} 19. Be4 {[%clk 0:02:12]}  Nxd4 {[%clk 0:02:19]} 20. Nxd4 {[%clk 0:02:13]}  Rd8 {[%clk 0:02:19]} 21. Bd5 {[%clk 0:02:06]}  Kg7 {[%clk 0:02:09]} 22. b3 {[%clk 0:01:55]}  Be6 {[%clk 0:01:58]} 23. Bxe6 {[%clk 0:00:59]}  Bxd4 {[%clk 0:01:55]} 24. Bd5 {[%clk 0:00:59]}  Bxa1 {[%clk 0:01:54]} 25. Rxa1 {[%clk 0:01:00]}  Rab8 {[%clk 0:01:50]} 26. a4 {[%clk 0:00:56]}  b6 {[%clk 0:01:50]} 27. Kf1 {[%clk 0:00:55]}  Re8 {[%clk 0:01:47]} 28. b4 {[%clk 0:00:54]}  Re5 {[%clk 0:01:46]} 29. b5 {[%clk 0:00:46]}  Rd8 {[%clk 0:01:44]} 30. a5 {[%clk 0:00:45]}  Rdxd5 {[%clk 0:01:41]} 31. cxd5 {[%clk 0:00:45]}  Rxd5 {[%clk 0:01:41]} 32. axb6 {[%clk 0:00:45]}  axb6 {[%clk 0:01:42]} 33. Rb1 {[%clk 0:00:45]}  Rd2 {[%clk 0:01:30]} 34. Ke1 {[%clk 0:00:37]}  Rc2 {[%clk 0:01:29]} 35. Rd1 {[%clk 0:00:37]}  Rc5 {[%clk 0:01:28]} 36. Rb1 {[%clk 0:00:37]}  Kf6 {[%clk 0:01:25]} 37. Kd2 {[%clk 0:00:34]}  g4 {[%clk 0:01:19]} 38. Rb4 {[%clk 0:00:33]}  Kf5 {[%clk 0:01:19]} 39. g3 {[%clk 0:00:29]}  fxg3 {[%clk 0:01:19]} 40. hxg3 {[%clk 0:00:29]}  h5 {[%clk 0:01:20]} 41. Ke3 {[%clk 0:00:25]}  Re5+ {[%clk 0:01:10]} 42. Kd3 {[%clk 0:00:22]}  Ke6 {[%clk 0:01:09]} 43. Rb1 {[%clk 0:00:18]}  f5 {[%clk 0:01:06]} 44. Kc4 {[%clk 0:00:18]}  Re2 {[%clk 0:01:04]} 45. Ra1 {[%clk 0:00:14]}  Rc2+ {[%clk 0:00:56]} 46. Kb4 {[%clk 0:00:03]}  Rb2+ {[%clk 0:00:56]} 47. Kc4 {[%clk 0:00:04]}  f4 {[%clk 0:00:18]} 48. Ra6 {[%clk 0:00:01]}  Rxf2 {[%clk 0:00:16]} 49. Rxb6+ {[%clk 0:00:02]}  Kd7 {[%clk 0:00:17]} 50. gxf4 {[%clk 0:00:01]}  g3 {[%clk 0:00:17]} 51. Rg6 {[%clk 0:00:01]}  h4 {[%clk 0:00:17]} 52. Kd5 {[%clk 0:00:01]}  Rxf4 {[%clk 0:00:16]} 53. Rg7+ {[%clk 0:00:02]}  Kc8 {[%clk 0:00:15]} 54. b6 {[%clk 0:00:02]}  Rb4 {[%clk 0:00:14]} 55. Kc6 {[%clk 0:00:02]}  Rc4+ {[%clk 0:00:14]} 56. Kb5 {[%clk 0:00:02]}  Rf4 {[%clk 0:00:13]} 57. Kc6 {[%clk 0:00:02]}  Rf6+ {[%clk 0:00:13]} 58. Kb5 {[%clk 0:00:03]}  Rh6 {[%clk 0:00:12]} 59. Ka6 {[%clk 0:00:01]}  h3 {[%clk 0:00:12]} 60. Ka7 {[%clk 0:00:01]}  Rxb6 {[%clk 0:00:11]} 61. Rxg3 {[%clk 0:00:01]}  Rh6 {[%clk 0:00:09]} 62. Rg1 {[%clk 0:00:01]}  h2 {[%clk 0:00:09]} 63. Rh1 {[%clk 0:00:01]}  Kc7 {[%clk 0:00:09]} 0-1


[Site "https://www.chess.com"]

[Event "Titled Tuesday Blitz February 15 Early 2022"]
[White "Ruperez Benito, Antonio"]
[Black "Ljukin, Sergei"]
[WhiteFideId "22245049"]
[BlackFideId "14102200"]
[WhiteElo "2249"]
[BlackElo "2312"]
[Result "1-0"]
[Round "08"]
[TimeControl "180+1"]
[Date "2022.02.15"]
[WhiteClock "0:00:57"]
[BlackClock "0:00:17"]

1. e4 {[%clk 0:03:00]}  e6 {[%clk 0:02:53]} 2. Nf3 {[%clk 0:03:01]}  d5 {[%clk 0:02:52]} 3. exd5 {[%clk 0:03:01]}  exd5 {[%clk 0:02:53]} 4. d4 {[%clk 0:03:02]}  Nf6 {[%clk 0:02:53]} 5. c4 {[%clk 0:03:02]}  Bb4+ {[%clk 0:02:52]} 6. Nc3 {[%clk 0:03:02]}  O-O {[%clk 0:02:52]} 7. Be2 {[%clk 0:03:02]}  Be6 {[%clk 0:02:52]} 8. O-O {[%clk 0:02:57]}  dxc4 {[%clk 0:02:49]} 9. Bg5 {[%clk 0:02:57]}  Nbd7 {[%clk 0:02:48]} 10. d5 {[%clk 0:02:52]}  Bg4 {[%clk 0:02:28]} 11. Bxc4 {[%clk 0:02:48]}  Be7 {[%clk 0:02:28]} 12. h3 {[%clk 0:02:47]}  Bh5 {[%clk 0:02:27]} 13. Re1 {[%clk 0:02:44]}  Nb6 {[%clk 0:02:17]} 14. Bxf6 {[%clk 0:02:41]}  Bxf6 {[%clk 0:02:15]} 15. Bb3 {[%clk 0:02:41]}  Re8 {[%clk 0:02:10]} 16. Qd3 {[%clk 0:02:41]}  Bg6 {[%clk 0:02:03]} 17. Qd2 {[%clk 0:02:38]}  a6 {[%clk 0:01:58]} 18. Rxe8+ {[%clk 0:02:22]}  Qxe8 {[%clk 0:01:58]} 19. Re1 {[%clk 0:02:23]}  Qf8 {[%clk 0:01:41]} 20. Ne4 {[%clk 0:02:18]}  Bxe4 {[%clk 0:01:34]} 21. Rxe4 {[%clk 0:02:19]}  Re8 {[%clk 0:01:34]} 22. Re2 {[%clk 0:02:14]}  Re7 {[%clk 0:01:26]} 23. h4 {[%clk 0:01:36]}  h6 {[%clk 0:01:21]} 24. g3 {[%clk 0:01:33]}  Qe8 {[%clk 0:01:21]} 25. Rxe7 {[%clk 0:01:26]}  Qxe7 {[%clk 0:01:20]} 26. Nh2 {[%clk 0:01:26]}  Qe4 {[%clk 0:01:17]} 27. d6 {[%clk 0:01:23]}  Qc6 {[%clk 0:01:05]} 28. dxc7 {[%clk 0:01:20]}  Qxc7 {[%clk 0:01:05]} 29. Ng4 {[%clk 0:01:20]}  Be7 {[%clk 0:01:00]} 30. Qd3 {[%clk 0:01:19]}  h5 {[%clk 0:00:43]} 31. Nh6+ {[%clk 0:01:12]}  Kf8 {[%clk 0:00:20]} 32. Nxf7 {[%clk 0:01:10]}  Qc1+ {[%clk 0:00:19]} 33. Kh2 {[%clk 0:01:06]}  Qxb2 {[%clk 0:00:20]} 34. Qe3 {[%clk 0:01:02]}  Qf6 {[%clk 0:00:19]} 35. Ng5 {[%clk 0:00:59]}  Nd7 {[%clk 0:00:17]} 36. Nh7+ {[%clk 0:00:57]} 1-0


[Site "https://www.chess.com"]

[Event "Titled Tuesday Blitz February 15 Early 2022"]
[White "Rustemov, Alexander"]
[Black "Hansen, Eric"]
[WhiteFideId "4119002"]
[BlackFideId "2606771"]
[WhiteElo "2804"]
[BlackElo "2568"]
[Result "1/2-1/2"]
[Round "08"]
[TimeControl "180+1"]
[Date "2022.02.15"]
[WhiteClock "0:00:06"]
[BlackClock "0:00:03"]

1. d4 {[%clk 0:03:00]}  d5 {[%clk 0:02:53]} 2. c4 {[%clk 0:03:00]}  e6 {[%clk 0:02:53]} 3. Nc3 {[%clk 0:03:00]}  Be7 {[%clk 0:02:52]} 4. Nf3 {[%clk 0:02:58]}  Nf6 {[%clk 0:02:41]} 5. Bg5 {[%clk 0:02:58]}  h6 {[%clk 0:02:34]} 6. Bxf6 {[%clk 0:02:55]}  Bxf6 {[%clk 0:02:34]} 7. e3 {[%clk 0:02:56]}  c6 {[%clk 0:02:33]} 8. Rc1 {[%clk 0:02:56]}  Nd7 {[%clk 0:02:33]} 9. Bd3 {[%clk 0:02:55]}  O-O {[%clk 0:02:32]} 10. O-O {[%clk 0:02:54]}  g6 {[%clk 0:02:30]} 11. Qc2 {[%clk 0:02:52]}  Bg7 {[%clk 0:02:30]} 12. Rfd1 {[%clk 0:02:51]}  Qe7 {[%clk 0:02:30]} 13. e4 {[%clk 0:02:16]}  dxc4 {[%clk 0:02:26]} 14. Bxc4 {[%clk 0:02:16]}  e5 {[%clk 0:02:16]} 15. d5 {[%clk 0:02:12]}  Nb6 {[%clk 0:02:16]} 16. Bb3 {[%clk 0:02:07]}  Bg4 {[%clk 0:02:02]} 17. Qe2 {[%clk 0:02:02]}  Rac8 {[%clk 0:01:59]} 18. h3 {[%clk 0:02:01]}  Bd7 {[%clk 0:01:57]} 19. dxc6 {[%clk 0:01:30]}  Bxc6 {[%clk 0:01:54]} 20. Rd3 {[%clk 0:01:19]}  Rfd8 {[%clk 0:01:51]} 21. Rcd1 {[%clk 0:01:19]}  Rxd3 {[%clk 0:01:51]} 22. Qxd3 {[%clk 0:01:18]}  Bf8 {[%clk 0:01:48]} 23. Nd5 {[%clk 0:01:17]}  Bxd5 {[%clk 0:01:41]} 24. Bxd5 {[%clk 0:01:18]}  Kg7 {[%clk 0:01:38]} 25. Bb3 {[%clk 0:01:15]}  Qf6 {[%clk 0:01:33]} 26. g3 {[%clk 0:01:12]}  Be7 {[%clk 0:01:15]} 27. Kg2 {[%clk 0:01:12]}  Rc7 {[%clk 0:01:07]} 28. h4 {[%clk 0:01:05]}  Rd7 {[%clk 0:00:47]} 29. Qb5 {[%clk 0:01:04]}  Rxd1 {[%clk 0:00:45]} 30. Bxd1 {[%clk 0:01:05]}  Bd6 {[%clk 0:00:45]} 31. Bb3 {[%clk 0:01:03]}  Qe7 {[%clk 0:00:42]} 32. a4 {[%clk 0:00:55]}  Bc5 {[%clk 0:00:31]} 33. h5 {[%clk 0:00:45]}  a6 {[%clk 0:00:26]} 34. Qd3 {[%clk 0:00:43]}  Qd6 {[%clk 0:00:18]} 35. Qc2 {[%clk 0:00:26]}  g5 {[%clk 0:00:07]} 36. Nh2 {[%clk 0:00:24]}  Qc6 {[%clk 0:00:02]} 37. Ng4 {[%clk 0:00:21]}  Bd4 {[%clk 0:00:03]} 38. Qd3 {[%clk 0:00:15]}  f5 {[%clk 0:00:03]} 39. Ne3 {[%clk 0:00:12]}  Qxe4+ {[%clk 0:00:01]} 40. Qxe4 {[%clk 0:00:11]}  fxe4 {[%clk 0:00:02]} 41. Nf5+ {[%clk 0:00:12]}  Kh7 {[%clk 0:00:03]} 42. a5 {[%clk 0:00:10]}  Nd7 {[%clk 0:00:03]} 43. Bd5 {[%clk 0:00:10]}  Bxb2 {[%clk 0:00:02]} 44. Bxe4 {[%clk 0:00:10]}  Nf6 {[%clk 0:00:03]} 45. Bxb7 {[%clk 0:00:09]}  Bc3 {[%clk 0:00:03]} 46. Bxa6 {[%clk 0:00:06]}  Bxa5 {[%clk 0:00:03]} 47. Be2 {[%clk 0:00:05]}  g4 {[%clk 0:00:03]} 48. Ne3 {[%clk 0:00:06]}  Nxh5 {[%clk 0:00:03]} 1/2-1/2


[Site "https://www.chess.com"]

[Event "Titled Tuesday Blitz February 15 Early 2022"]
[White "Sadhwani, Raunak"]
[Black "Garriga Cazorla, Pere"]
[WhiteFideId "35093487"]
[BlackFideId "32011601"]
[WhiteElo "2616"]
[BlackElo "2458"]
[Result "0-1"]
[Round "08"]
[TimeControl "180+1"]
[Date "2022.02.15"]
[WhiteClock "0:00:31"]
[BlackClock "0:00:23"]

1. d4 {[%clk 0:03:00]}  Nf6 {[%clk 0:02:59]} 2. Nf3 {[%clk 0:03:00]}  e6 {[%clk 0:02:59]} 3. Bf4 {[%clk 0:03:00]}  c5 {[%clk 0:02:59]} 4. e3 {[%clk 0:03:01]}  d5 {[%clk 0:02:58]} 5. Nbd2 {[%clk 0:03:01]}  Nc6 {[%clk 0:02:58]} 6. c3 {[%clk 0:03:01]}  cxd4 {[%clk 0:02:59]} 7. exd4 {[%clk 0:03:00]}  Nh5 {[%clk 0:02:59]} 8. Be3 {[%clk 0:02:59]}  Bd6 {[%clk 0:02:59]} 9. Bd3 {[%clk 0:02:59]}  Nf4 {[%clk 0:02:58]} 10. Bxf4 {[%clk 0:02:58]}  Bxf4 {[%clk 0:02:59]} 11. g3 {[%clk 0:02:59]}  Bh6 {[%clk 0:02:59]} 12. O-O {[%clk 0:02:58]}  O-O {[%clk 0:02:58]} 13. Re1 {[%clk 0:02:58]}  g6 {[%clk 0:02:57]} 14. h4 {[%clk 0:02:55]}  Bg7 {[%clk 0:02:56]} 15. h5 {[%clk 0:02:56]}  Re8 {[%clk 0:02:53]} 16. hxg6 {[%clk 0:02:56]}  hxg6 {[%clk 0:02:54]} 17. Kg2 {[%clk 0:02:56]}  e5 {[%clk 0:02:52]} 18. dxe5 {[%clk 0:02:56]}  Nxe5 {[%clk 0:02:47]} 19. Nxe5 {[%clk 0:02:53]}  Rxe5 {[%clk 0:02:47]} 20. Rxe5 {[%clk 0:02:52]}  Bxe5 {[%clk 0:02:47]} 21. Nf3 {[%clk 0:02:53]}  Bg4 {[%clk 0:02:33]} 22. Be2 {[%clk 0:02:52]}  Bg7 {[%clk 0:02:31]} 23. Qd2 {[%clk 0:02:53]}  Qb6 {[%clk 0:02:28]} 24. Nd4 {[%clk 0:02:43]}  Bd7 {[%clk 0:02:19]} 25. Bf3 {[%clk 0:02:41]}  Qd6 {[%clk 0:02:17]} 26. Re1 {[%clk 0:02:40]}  a5 {[%clk 0:02:14]} 27. a3 {[%clk 0:02:38]}  Re8 {[%clk 0:02:05]} 28. Rd1 {[%clk 0:02:37]}  Ba4 {[%clk 0:01:57]} 29. Rh1 {[%clk 0:02:37]}  Bd7 {[%clk 0:01:55]} 30. Rd1 {[%clk 0:02:08]}  Ba4 {[%clk 0:01:53]} 31. Re1 {[%clk 0:02:08]}  Rxe1 {[%clk 0:01:50]} 32. Qxe1 {[%clk 0:02:09]}  Bd7 {[%clk 0:01:46]} 33. Qd2 {[%clk 0:02:08]}  Bc6 {[%clk 0:01:34]} 34. b4 {[%clk 0:02:04]}  axb4 {[%clk 0:01:34]} 35. axb4 {[%clk 0:02:05]}  Bf6 {[%clk 0:01:31]} 36. Qe3 {[%clk 0:02:03]}  Bd7 {[%clk 0:01:30]} 37. Qd3 {[%clk 0:02:00]}  Kg7 {[%clk 0:01:27]} 38. Ne2 {[%clk 0:02:00]}  Be6 {[%clk 0:01:21]} 39. Nf4 {[%clk 0:02:00]}  d4 {[%clk 0:01:17]} 40. Nxe6+ {[%clk 0:01:58]}  Qxe6 {[%clk 0:00:59]} 41. cxd4 {[%clk 0:01:58]}  Qd6 {[%clk 0:00:57]} 42. Qb5 {[%clk 0:01:39]}  b6 {[%clk 0:00:52]} 43. d5 {[%clk 0:01:35]}  Bc3 {[%clk 0:00:53]} 44. Qc4 {[%clk 0:01:21]}  Qxb4 {[%clk 0:00:51]} 45. Qe2 {[%clk 0:01:05]}  Qd6 {[%clk 0:00:45]} 46. Qd3 {[%clk 0:01:01]}  Bf6 {[%clk 0:00:44]} 47. Bd1 {[%clk 0:00:58]}  Be7 {[%clk 0:00:43]} 48. Bb3 {[%clk 0:00:55]}  Qf6 {[%clk 0:00:43]} 49. f4 {[%clk 0:00:46]}  Bc5 {[%clk 0:00:41]} 50. Kf3 {[%clk 0:00:46]}  Bd6 {[%clk 0:00:40]} 51. Ba4 {[%clk 0:00:37]}  Qa1 {[%clk 0:00:33]} 52. Bc6 {[%clk 0:00:33]}  Qh1+ {[%clk 0:00:30]} 53. Ke2 {[%clk 0:00:32]}  Qg2+ {[%clk 0:00:24]} 54. Kd1 {[%clk 0:00:32]}  Qg1+ {[%clk 0:00:25]} 55. Kc2 {[%clk 0:00:31]}  Qc5+ {[%clk 0:00:25]} 56. Kb3 {[%clk 0:00:31]}  Qa3+ {[%clk 0:00:23]} 57. Kc4 {[%clk 0:00:31]}  Qb4# {[%clk 0:00:23]} 0-1


[Site "https://www.chess.com"]

[Event "Titled Tuesday Blitz February 15 Early 2022"]
[White "Sadovsky, Artem"]
[Black "Narayanan.S.L"]
[WhiteFideId "4155840"]
[BlackFideId "5058422"]
[WhiteElo "2369"]
[BlackElo "2494"]
[Result "0-1"]
[Round "08"]
[TimeControl "180+1"]
[Date "2022.02.15"]
[WhiteClock "0:00:04"]
[BlackClock "0:01:24"]

1. Nf3 {[%clk 0:03:00]}  Nf6 {[%clk 0:02:56]} 2. e3 {[%clk 0:03:01]}  g6 {[%clk 0:02:56]} 3. b3 {[%clk 0:03:01]}  Bg7 {[%clk 0:02:57]} 4. Bb2 {[%clk 0:03:01]}  d6 {[%clk 0:02:57]} 5. c4 {[%clk 0:03:02]}  e5 {[%clk 0:02:56]} 6. d4 {[%clk 0:03:02]}  e4 {[%clk 0:02:52]} 7. Nfd2 {[%clk 0:03:03]}  O-O {[%clk 0:02:53]} 8. Nc3 {[%clk 0:03:03]}  Re8 {[%clk 0:02:54]} 9. d5 {[%clk 0:02:55]}  Nbd7 {[%clk 0:02:52]} 10. Qc2 {[%clk 0:02:54]}  Qe7 {[%clk 0:02:50]} 11. Be2 {[%clk 0:02:47]}  Nc5 {[%clk 0:02:48]} 12. b4 {[%clk 0:02:22]}  Ncd7 {[%clk 0:02:37]} 13. h3 {[%clk 0:02:16]}  a5 {[%clk 0:02:37]} 14. a3 {[%clk 0:02:15]}  h5 {[%clk 0:02:35]} 15. g4 {[%clk 0:01:53]}  hxg4 {[%clk 0:02:27]} 16. hxg4 {[%clk 0:01:54]}  axb4 {[%clk 0:02:19]} 17. axb4 {[%clk 0:01:53]}  Rxa1+ {[%clk 0:02:20]} 18. Bxa1 {[%clk 0:01:54]}  Ne5 {[%clk 0:02:09]} 19. g5 {[%clk 0:01:23]}  Nh7 {[%clk 0:02:08]} 20. Ndxe4 {[%clk 0:01:07]}  Nxg5 {[%clk 0:02:08]} 21. f4 {[%clk 0:01:03]}  Nxe4 {[%clk 0:02:05]} 22. Nxe4 {[%clk 0:00:46]}  Nf3+ {[%clk 0:01:34]} 23. Kf2 {[%clk 0:00:21]}  Bxa1 {[%clk 0:01:33]} 24. Rxa1 {[%clk 0:00:20]}  Qh4+ {[%clk 0:01:33]} 25. Kxf3 {[%clk 0:00:10]}  Bg4+ {[%clk 0:01:22]} 26. Kg2 {[%clk 0:00:10]}  Qh3+ {[%clk 0:01:23]} 27. Kf2 {[%clk 0:00:08]}  Qh2+ {[%clk 0:01:23]} 28. Ke1 {[%clk 0:00:08]}  Rxe4 {[%clk 0:01:24]} 29. Ra8+ {[%clk 0:00:05]}  Kh7 {[%clk 0:01:24]} 30. Qb2 {[%clk 0:00:04]}  Qg1+ {[%clk 0:01:24]} 0-1


[Site "https://www.chess.com"]